bitfinex-derivatives/quotes_ETHF0:USTF0_20251210
["timestamp","ask_amount","ask_price","bid_price","bid_amount"]
[1765385089183,1.08017779,3354.9,3354.8,3.0576]
[1765385089375,0.00807779,3354.9,3354.8,3.0576]
[1765385089577,0.77110306,3355.1,3355.0,4.12883]
[1765385089882,3.2078,3356.1,3355.5,1.07121]
[1765385090483,1.0721,3355.6,3355.5,4.12881]
[1765385090675,1.07571695,3355.6,3355.5,2.62083559]
[1765385090876,1.07571695,3355.6,3355.5,4.13203559]
[1765385091983,0.00361695,3355.6,3355.5,4.13203559]
[1765385093980,1.03581695,3355.6,3355.5,4.13203559]
[1765385094385,0.00361695,3355.6,3355.5,4.13203559]
[1765385094886,2.02181695,3355.6,3355.5,4.13203559]
[1765385095687,2.02181695,3355.6,3355.5,1.07443559]
[1765385095980,0.00361695,3355.6,3355.5,4.13203559]
[1765385097883,1.93201695,3355.6,3355.5,2.62083559]
[1765385098085,1.93201695,3355.6,3355.5,3.98593559]
[1765385098287,0.00361695,3355.6,3355.5,3.98593559]
[1765385098887,0.94591695,3355.6,3355.5,3.98593559]
[1765385099788,0.00361695,3355.6,3355.5,3.98593559]
[1765385101497,3.2078,3356.1,3356.0,3.75908]
[1765385101793,4.1049,3356.9,3356.8,2.7691]
[1765385101995,4.1023238,3356.9,3356.8,2.7691]
[1765385102182,3.2078,3356.9,3356.8,2.7691]
[1765385102492,0.8971,3356.7,3356.6,2.7691]
[1765385102792,4.1049,3356.9,3356.8,2.7691]
[1765385103192,3.21055295,3356.9,3356.8,2.7691]
[1765385103488,5.66095295,3356.9,3356.5,0.98996]
[1765385103695,3.21055295,3356.9,3356.5,3.75906]
[1765385103894,5.64485295,3356.9,3356.8,1.404]
[1765385104295,5.64485295,3356.9,3356.8,2.7691]
[1765385104491,3.21055295,3356.9,3356.8,2.7691]
[1765385104787,2.3862,3356.6,3356.3,0.00447447]
[1765385104994,2.3862,3356.4,3356.3,0.00447447]
[1765385106896,3.2799328,3356.4,3356.3,0.00447447]
[1765385107098,2.3049,3355.6,3355.4,3.2078]
[1765385107291,5.5127,3355.6,3355.1,0.14902]
[1765385107791,5.5127,3355.6,3355.5,0.00322559]
[1765385109402,6.4077698,3355.6,3355.5,0.00322559]
[1765385110795,4.1028698,3355.6,3355.5,3.87712559]
[1765385111492,6.2970698,3355.6,3355.5,0.00322559]
[1765385111900,6.2970698,3355.6,3355.2,0.00447447]
[1765385111901,12.2970698,3355.6,3355.2,0.00447447]
[1765385112093,2.1564,3355.3,3355.2,0.00447447]
[1765385112289,2.1564,3355.3,3354.5,0.841]
[1765385112290,2.1474,3354.1,3354.0,0.841]
[1765385112597,3.2078,3354.8,3354.2,2.9429]
[1765385112794,3.2078,3354.8,3354.0,0.841]
[1765385112795,2.1162,3354.1,3354.0,0.841]
[1765385112991,3.01560768,3354.1,3354.0,0.84374153]
[1765385113197,0.00231045,3354.1,3354.0,3.78664153]
[1765385113595,0.89693128,3354.3,3354.2,2.9429]
[1765385114715,2.0725,3354.1,3354.0,0.84374153]
[1765385114903,2.96925065,3354.1,3354.0,0.84374153]
[1765385115591,2.96925065,3354.1,3354.0,0.00274153]
[1765385116297,2.96925065,3354.1,3354.0,0.93374153]
[1765385116692,0.89675065,3354.1,3354.0,3.87664153]
[1765385117000,0.89595012,3354.1,3354.0,3.87664153]
[1765385117204,0.00254344,3354.3,3354.0,3.87664153]
[1765385117397,0.00254344,3354.3,3354.2,2.9429]
[1765385117598,0.00447447,3354.4,3354.3,2.9429]
[1765385117901,3.2078,3354.8,3354.7,2.9429]
[1765385118102,4.10340344,3354.8,3354.7,2.9429]
[1765385118405,3.2078,3355.2,3354.7,2.9429]
[1765385118700,1.87804042,3355.1,3355.0,0.931]
[1765385119003,2.86054042,3355.1,3355.0,0.931]
[1765385119199,2.86054042,3355.1,3354.5,0.931]
[1765385119400,1.965,3355.1,3354.5,0.931]
[1765385119605,1.965,3355.1,3354.5,1.08005]
[1765385119902,0.9825,3355.1,3354.5,1.08005]
[1765385120904,1.891,3354.6,3354.5,0.931]
[1765385121302,1.891,3354.6,3354.0,3.19659204]
[1765385121602,3.2078,3354.8,3354.0,3.19659204]
[1765385121798,0.89548335,3354.7,3354.0,3.19659204]
[1765385122998,0.9076,3354.6,3354.5,0.931]
[1765385123906,1.8152,3354.6,3354.5,0.931]
[1765385126210,1.8152,3354.6,3354.0,3.19659204]
[1765385126411,1.7252,3354.1,3354.0,0.93374153]
[1765385126709,3.2078,3354.8,3354.0,4.02571153]
[1765385126905,0.89515475,3354.7,3354.0,4.02571153]
[1765385127110,0.8626,3354.1,3354.0,2.59531153]
[1765385128412,1.6825,3354.1,3354.0,1.08281153]
[1765385129114,1.6825,3354.1,3354.0,2.54741153]
[1765385130818,1.6825,3354.1,3354.0,0.15181153]
[1765385131316,1.6825,3354.1,3354.0,1.00291153]
[1765385131612,1.6825,3354.1,3354.0,0.00274153]
[1765385131810,2.57748614,3354.1,3354.0,0.00274153]
[1765385133311,2.57748614,3354.1,3354.0,0.85384153]
[1765385134501,2.57748614,3354.1,3354.0,0.00274153]
[1765385136016,2.57748614,3354.1,3349.3,8.62328152]
[1765385136017,1.4354,3352.7,3352.6,3.2078]
[1765385136212,3.2078,3352.7,3352.5,0.8511]
[1765385136519,2.33038614,3352.6,3352.5,0.8511]
[1765385136714,0.7177,3352.2,3352.1,1.61376]
[1765385136910,1.42471637,3352.2,3352.1,1.61668634]
[1765385137112,2.31970251,3352.2,3352.1,0.00292634]
[1765385137913,0.89870251,3352.2,3351.7,6.0696]
[1765385138117,1.58870251,3352.2,3352.1,1.4646]
[1765385138311,0.00447447,3352.5,3352.4,2.8618]
[1765385138514,1.38447447,3352.5,3352.1,3.2078]
[1765385138708,1.3657,3352.2,3352.1,3.2078]
[1765385138912,0.00447447,3352.5,3352.0,0.8511]
[1765385138913,1.3514,3352.1,3352.0,0.8511]
[1765385139314,1.35402325,3352.1,3352.0,0.85321679]
[1765385140210,1.35402325,3352.1,3352.0,0.00211679]
[1765385140816,0.67832325,3352.1,3352.0,2.31781679]
[1765385141020,0.00262325,3352.1,3352.0,3.71501679]
[1765385141421,0.79422325,3352.1,3352.0,3.71501679]
[1765385141721,1.57112325,3352.1,3352.0,0.85321679]
[1765385142110,0.79422325,3352.1,3352.0,2.31781679]
[1765385142313,0.79422325,3352.1,3352.0,3.71501679]
[1765385144328,0.00262325,3352.1,3352.0,3.71501679]
[1765385144623,0.75042325,3352.1,3352.0,3.71501679]
[1765385144922,1.49822325,3352.1,3352.0,2.31781679]
[1765385145521,3.09955563,3352.1,3352.0,0.85321679]
[1765385146023,3.09955563,3352.1,3352.0,0.00211679]
[1765385146421,1.49822325,3352.1,3352.0,0.00211679]
[1765385146925,1.49822325,3352.1,3352.0,0.85321679]
[1765385147318,3.63333309,3352.1,3352.0,0.85321679]
[1765385148324,1.3944,3351.9,3351.8,0.00447447]
[1765385148625,6.72717669,3351.9,3351.8,0.00447447]
[1765385148924,4.6022,3351.9,3351.8,0.00447447]
[1765385149327,4.6022,3351.9,3351.8,0.00702814]
[1765385149525,1.5948,3351.1,3350.8,3.2078]
[1765385149822,6.39627006,3351.1,3351.0,2.3157]
[1765385150028,2.12489342,3351.6,3351.5,3.7129]
[1765385150225,0.8041,3351.6,3351.5,3.7129]
[1765385150429,1.73701262,3351.6,3351.5,3.7129]
[1765385150725,1.73701262,3351.6,3351.5,3.71531339]
[1765385151026,0.93291262,3351.6,3351.5,3.71531339]
[1765385151429,0.00262325,3352.1,3352.0,3.7129]
[1765385151621,3.2078,3352.7,3352.4,2.8618]
[1765385151818,4.5539,3353.1,3353.0,3.7129]
[1765385152131,3.2078,3353.1,3353.0,3.7129]
[1765385152520,4.5539,3353.1,3353.0,3.7129]
[1765385152725,5.90787731,3353.1,3353.0,0.8511]
[1765385152923,4.55627731,3353.1,3353.0,3.7129]
[1765385153231,3.21017731,3353.1,3353.0,3.7129]
[1765385153525,0.00237731,3353.1,3353.0,3.7129]
[1765385153728,1.34847731,3353.1,3353.0,3.7129]
[1765385154032,0.00237731,3353.1,3353.0,3.7129]
[1765385157727,0.00237731,3353.1,3353.0,5.97575051]
[1765385157934,0.00237731,3353.1,3353.0,6.12487051]
[1765385160434,2.6688873,3354.3,3353.0,6.12487051]
[1765385160435,3.2078,3354.0,3353.9,3.2121]
[1765385160730,3.2078,3354.0,3353.5,1.0009]
[1765385160731,6.309,3354.0,3353.5,3.26375051]
[1765385160929,3.0786,3353.4,3353.0,0.8511]
[1765385161130,3.0786,3353.1,3353.0,0.8511]
[1765385161333,3.0786,3353.1,3352.2,2.26285051]
[1765385161334,3.0786,3352.6,3352.5,5.6232]
[1765385161535,6.28851847,3352.6,3352.5,0.00214475]
[1765385161837,6.28851847,3352.6,3352.5,1.00304475]
[1765385162031,8.41341189,3352.6,3352.5,1.00304475]
[1765385162337,6.28851847,3352.6,3352.5,0.00214475]
[1765385162739,3.0307,3352.3,3352.2,0.00214475]
[1765385162932,3.34669723,3352.3,3352.2,0.00214475]
[1765385163142,5.48111889,3352.3,3352.2,0.00214475]
[1765385163338,6.35668658,3352.3,3352.2,0.00214475]
[1765385163831,2.39926769,3352.3,3352.2,1.56867954]
[1765385164230,4.20660575,3352.3,3352.2,0.00437954]
[1765385164534,0.87556769,3352.3,3352.2,3.21647954]
[1765385167541,3.80816769,3352.3,3352.2,0.00437954]
[1765385168943,0.87556769,3352.3,3352.2,3.21647954]
[1765385169241,3.69316769,3352.3,3352.2,0.00437954]
[1765385169539,2.8134,3351.6,3351.5,4.2087]
[1765385169740,3.68896769,3351.6,3351.5,4.2087]
[1765385170140,3.68896769,3351.6,3351.5,5.773]
[1765385170338,2.28226769,3351.6,3351.5,7.4208]
[1765385170542,0.87556769,3351.6,3351.5,7.42436491]
[1765385171140,1.3881,3351.6,3351.5,7.42436491]
[1765385171336,2.26366769,3351.6,3351.5,7.42436491]
[1765385172244,0.87556769,3351.6,3351.5,7.42436491]
[1765385172446,2.96128054,3352.3,3352.2,1.5809]
[1765385172636,5.18748252,3352.3,3352.0,0.9178]
[1765385172944,1.3586,3352.1,3352.0,3.9741]
[1765385173245,2.22620198,3352.1,3352.0,3.9741]
[1765385173843,0.86760198,3352.1,3352.0,3.9741]
[1765385174043,4.5342,3352.4,3352.3,1.5809]
[1765385174245,5.40182413,3352.4,3352.3,1.5809]
[1765385174444,5.40182413,3352.4,3352.3,3.0563]
[1765385175542,6.72822413,3352.4,3352.0,0.9178]
[1765385175739,2.17802413,3352.3,3352.2,1.5809]
[1765385176046,2.17802413,3352.3,3352.2,3.0563]
[1765385176648,0.86762413,3352.3,3352.2,3.0563]
[1765385177432,2.14612413,3352.3,3352.2,3.0563]
[1765385177633,0.86762413,3352.3,3352.2,3.0563]
[1765385178044,0.86762413,3352.3,3352.0,4.1256]
[1765385178045,2.5252,3352.1,3352.0,3.2078]
[1765385178234,3.39282413,3352.1,3352.0,3.2078]
[1765385179149,3.42380462,3352.1,3352.0,3.2078]
[1765385179636,3.42380462,3352.1,3351.5,4.21226491]
[1765385179835,0.89860462,3352.0,3351.5,4.21226491]
[1765385180036,2.12960462,3351.9,3351.8,1.5809]
[1765385180639,2.12960462,3351.9,3351.8,3.0563]
[1765385180845,2.12960462,3351.9,3351.5,4.21226491]
[1765385180846,3.36060462,3351.9,3351.5,4.21226491]
[1765385181044,1.2153,3351.6,3351.5,7.26856491]
[1765385181545,0.89860462,3351.6,3351.5,7.26856491]
[1765385181750,2.11412314,3351.9,3351.8,3.0563]
[1765385182151,3.32942314,3351.9,3351.8,1.5809]
[1765385183153,0.89882314,3351.9,3351.8,3.0563]
[1765385183347,1.55591847,3352.6,3352.5,3.9741]
[1765385183547,3.07511847,3352.6,3352.5,2.4987]
[1765385183847,4.67779901,3352.6,3352.5,0.9178]
[1765385184046,4.99432093,3352.6,3352.0,0.9178]
[1765385184348,4.67779901,3352.6,3352.0,0.9178]
[1765385184551,3.07511847,3352.6,3352.0,0.9178]
[1765385184750,4.67779901,3352.6,3352.0,0.9178]
[1765385185051,1.5538,3352.1,3352.0,3.9741]
[1765385185445,1.60479901,3352.6,3352.0,3.9741]
[1765385185646,1.60479901,3352.6,3352.1,3.2078]
[1765385185841,0.00211847,3352.6,3352.1,3.2078]
[1765385186052,1.5538,3351.8,3351.7,6.2641]
[1765385186252,3.073,3351.8,3351.7,4.7887]
[1765385186647,1.5538,3351.8,3351.7,6.2641]
[1765385186947,1.5538,3351.8,3351.7,3.0563]
[1765385187147,1.60268054,3352.2,3351.7,3.0563]
[1765385187550,3.073,3352.2,3352.1,1.5809]
[1765385188049,4.99246969,3352.2,3352.1,1.5809]
[1765385188251,3.0215,3352.1,3351.5,1.00446491]
[1765385188554,4.62715807,3352.1,3351.5,1.00446491]
[1765385189257,1.60565807,3352.0,3351.5,3.99746491]
[1765385189955,3.10615807,3352.0,3351.9,2.993]
[1765385190152,1.60565807,3352.1,3352.0,3.8948]
[1765385190358,1.92287933,3352.1,3352.0,3.8948]
[1765385190857,3.42337933,3352.1,3352.0,3.8948]
[1765385191157,3.42476408,3352.1,3352.0,3.8948]
[1765385192260,1.81772126,3352.1,3352.0,3.8948]
[1765385192654,0.31722126,3352.1,3352.0,3.8948]
[1765385192860,5.34470217,3352.4,3352.2,2.993]
[1765385192861,1.92489335,3352.3,3352.2,2.993]
[1765385194061,0.31722126,3352.3,3352.2,2.993]
[1765385194356,0.31722126,3352.3,3352.0,0.9018]
[1765385194357,1.60767209,3352.4,3352.3,2.993]
[1765385194560,0.31748107,3352.4,3352.3,2.993]
[1765385195361,0.88945219,3352.4,3352.2,0.14915]
[1765385195551,0.88945219,3352.3,3352.2,3.14215]
[1765385195757,0.00211847,3352.6,3352.5,3.8948]
[1765385195956,0.00211847,3352.6,3352.5,7.1026]
[1765385196147,0.00211847,3352.6,3352.5,7.25174]
[1765385196553,0.00211847,3352.6,3352.5,13.25174]
[1765385197161,1.847e-05,3352.6,3352.5,13.25174]
[1765385197760,0.00447447,3352.9,3352.5,13.25174]
[1765385197966,0.79389633,3355.7,3352.5,13.25174]
[1765385197967,1.60767209,3353.9,3353.8,2.993]
[1765385198261,3.10817209,3354.1,3354.0,3.8948]
[1765385198455,1.5005,3354.1,3354.0,3.8948]
[1765385198653,1.5005,3354.1,3354.0,2.4595]
[1765385198654,3.0215,3354.1,3354.0,2.4595]
[1765385198863,3.0215,3353.5,3353.4,1.7068]
[1765385199061,1.5005,3353.5,3353.4,3.14483244]
[1765385199759,3.0215,3353.5,3353.4,2.99573244]
[1765385199964,3.0215,3353.5,3353.4,0.00273244]
[1765385200965,3.0215,3353.5,3353.4,1.56043244]
[1765385201566,3.2078,3353.9,3353.5,0.9018]
[1765385201865,6.2293,3353.9,3353.5,0.9018]
[1765385202168,1.5005,3353.6,3353.5,3.8948]
[1765385202463,3.0215,3353.6,3353.5,3.8948]
[1765385202659,3.0215,3353.6,3353.5,2.4595]
[1765385203266,3.0215,3353.6,3353.5,3.8948]
[1765385203469,1.5005,3353.6,3353.5,3.8948]
[1765385203969,3.2078,3353.9,3353.8,2.993]
[1765385204265,3.02458179,3354.1,3354.0,1.5577]
[1765385204768,3.02458179,3354.1,3353.6,3.2078]
[1765385205564,3.02458179,3354.1,3353.5,0.9018]
[1765385205763,1.5005,3353.6,3353.5,3.8948]
[1765385205969,3.0215,3353.6,3353.5,3.8948]
[1765385206170,0.00308179,3354.1,3353.5,3.8948]
[1765385207369,1.5005,3353.6,3353.5,3.8948]
[1765385207566,3.0215,3353.6,3353.5,2.4595]
[1765385207766,3.0215,3353.6,3353.4,1.56043244]
[1765385207767,3.0215,3353.5,3353.4,1.56043244]
[1765385207969,3.90507758,3353.5,3353.4,1.56043244]
[1765385208471,3.90507758,3353.5,3353.4,0.00273244]
[1765385208773,4.76387758,3353.5,3353.4,0.00273244]
[1765385208965,3.0215,3353.2,3353.1,0.00271397]
[1765385209169,3.90507758,3353.2,3353.1,0.00271397]
[1765385209368,3.0215,3352.4,3352.3,3.2078]
[1765385209672,3.90526267,3352.4,3352.3,3.2078]
[1765385210272,3.90526267,3352.4,3352.3,3.21108817]
[1765385210773,3.90526267,3352.4,3352.3,6.20408817]
[1765385210774,0.88376267,3352.4,3352.3,6.20408817]
[1765385210973,3.90981995,3352.7,3352.6,1.5577]
[1765385211169,3.90981995,3352.7,3352.3,3.21108817]
[1765385211376,3.0215,3352.4,3352.3,6.20408817]
[1765385211566,2.38434548,3352.4,3352.3,6.20408817]
[1765385212278,0.88384548,3352.4,3352.3,6.20408817]
[1765385212577,0.00447447,3352.7,3352.3,6.20408817]
[1765385212578,0.88831995,3352.7,3352.3,6.20408817]
[1765385212870,0.88384548,3352.6,3352.3,6.20408817]
[1765385213071,2.38434548,3352.5,3352.4,1.5577]
[1765385213370,3.90534548,3352.5,3352.4,1.5577]
[1765385213772,3.90534548,3352.5,3352.4,2.993]
[1765385214570,2.38434548,3352.5,3352.4,2.993]
[1765385214968,0.88384548,3352.5,3352.4,2.993]
[1765385215274,4.81547209,3353.2,3352.3,3.21108817]
[1765385215275,6.2293,3353.6,3353.0,0.9018]
[1765385215471,6.2293,3353.6,3353.5,1.5577]
[1765385216370,6.2293,3353.6,3353.0,4.1096]
[1765385216572,1.5005,3353.1,3353.0,7.1026]
[1765385216777,3.2078,3353.6,3353.0,7.1026]
[1765385217975,6.0892,3353.6,3353.5,1.5577]
[1765385218176,6.0892,3353.6,3353.0,4.1096]
[1765385218774,6.0892,3353.6,3353.5,1.4273]
[1765385219782,6.0892,3353.6,3353.0,4.1096]
[1765385219971,4.7083,3353.6,3353.5,3.6888]
[1765385220167,0.00447447,3353.9,3353.8,2.8219]
[1765385220372,0.00447447,3353.9,3353.8,6.0297]
[1765385221177,3.2078,3354.5,3354.4,2.8219]
[1765385221377,1.4899,3354.5,3354.4,2.8219]
[1765385222177,1.49362371,3354.5,3354.4,2.8219]
[1765385222880,2.87452371,3354.5,3354.4,2.8219]
[1765385223378,1.4899,3354.3,3354.2,6.0297]
[1765385223578,2.8708,3354.3,3354.2,3.2078]
[1765385224081,2.8708,3354.2,3354.1,0.00447447]
[1765385224472,2.8708,3354.2,3354.1,1.43177447]
[1765385224674,2.8708,3354.2,3354.1,0.00447447]
[1765385225078,8.00254583,3354.2,3354.1,0.00447447]
[1765385225274,2.8708,3353.4,3353.3,4.6351]
[1765385225580,2.8708,3353.4,3353.3,2.8219]
[1765385225774,2.8708,3353.4,3353.0,0.9018]
[1765385225775,1.4899,3353.1,3353.0,2.3291]
[1765385225975,3.2078,3353.7,3353.0,3.7237]
[1765385226277,3.2078,3353.7,3353.0,3.72817447]
[1765385226483,2.8708,3353.1,3353.0,0.00447447]
[1765385226782,2.8708,3353.1,3353.0,1.43177447]
[1765385226980,1.4899,3353.1,3353.0,3.69327447]
[1765385227184,0.88471929,3353.1,3353.0,3.69327447]
[1765385227480,0.88471929,3353.1,3353.0,2.26597447]
[1765385227783,1.4899,3354.1,3354.0,1.4273]
[1765385227978,2.37445551,3354.1,3354.0,1.4273]
[1765385228376,2.37445551,3354.1,3354.0,2.2942]
[1765385228582,2.37445551,3354.1,3354.0,3.6888]
[1765385229380,0.88455551,3354.1,3354.0,3.6888]
[1765385229780,0.88455551,3354.4,3354.0,3.6888]
[1765385230085,2.24555551,3354.3,3354.2,1.3468]
[1765385230481,2.24555551,3354.3,3354.2,2.7476]
[1765385233982,2.24555551,3354.3,3354.1,3.2078]
[1765385233983,2.7009,3354.2,3354.1,3.2078]
[1765385234287,3.58545551,3354.2,3354.1,3.2078]
[1765385234688,2.24555551,3354.2,3354.1,5.9554]
[1765385235186,3.58545551,3354.2,3354.1,4.5546]
[1765385235381,2.24555551,3354.2,3354.1,5.9554]
[1765385235576,0.88455551,3354.2,3354.1,5.9554]
[1765385235788,0.00372371,3354.5,3354.4,2.7476]
[1765385235988,2.70462371,3354.5,3354.4,1.3468]
[1765385236189,3.58836188,3354.5,3354.4,1.3468]
[1765385236392,3.58836188,3354.5,3354.1,3.2078]
[1765385236583,1.361,3354.2,3354.1,5.9554]
[1765385236887,2.24473817,3354.2,3354.1,5.9554]
[1765385237289,3.58463817,3354.2,3354.1,4.5546]
[1765385237487,0.88373817,3354.2,3354.1,5.9554]
[1765385237689,2.70462371,3354.5,3354.4,1.3468]
[1765385237885,2.70462371,3354.5,3354.4,2.7476]
[1765385237886,3.58815561,3354.5,3354.4,2.7476]
[1765385238085,0.88725561,3354.5,3354.4,2.7476]
[1765385238280,0.00372371,3354.5,3354.4,2.7476]
[1765385239687,3.2078,3355.3,3355.2,2.7476]
[1765385239893,1.60190238,3355.6,3355.5,2.2064]
[1765385239894,2.7009,3355.6,3355.5,2.2064]
[1765385240189,1.361,3355.6,3355.5,3.6072]
[1765385240395,1.60190238,3356.1,3355.5,3.6072]
[1765385240697,0.00818668,3356.1,3355.5,3.61530242]
[1765385240992,2.7009,3355.6,3355.5,3.61530242]
[1765385241190,2.7009,3355.6,3355.5,0.86770242]
[1765385241497,1.61008906,3356.1,3355.5,0.86770242]
[1765385241498,2.7009,3355.8,3355.7,2.7476]
[1765385241693,1.361,3355.6,3355.5,3.61530242]
[1765385241895,2.7009,3355.6,3355.5,0.00810242]
[1765385242193,0.8004,3355.5,3354.5,6.815]
[1765385242390,3.2078,3355.2,3354.5,6.815]
[1765385242893,2.7009,3354.6,3354.5,6.815]
[1765385243192,2.7009,3354.6,3354.5,5.41682867]
[1765385243402,1.361,3354.6,3354.5,6.81762867]
[1765385243593,3.2078,3355.2,3354.5,6.81762867]
[1765385243999,1.361,3354.6,3354.5,6.81762867]
[1765385244295,3.2078,3355.2,3354.5,6.81762867]
[1765385245087,1.59929506,3355.3,3355.2,2.7476]
[1765385245287,1.361,3355.7,3355.6,2.7476]
[1765385245493,2.7009,3355.7,3355.6,1.3468]
[1765385246792,1.361,3355.6,3355.5,2.2064]
[1765385247100,1.361,3355.6,3355.5,3.6072]
[1765385247296,2.96029506,3355.9,3355.8,1.3468]
[1765385247500,1.67713281,3355.9,3355.8,2.7476]
[1765385248301,4.61631349,3355.9,3355.5,0.8596]
[1765385248599,1.2969,3355.6,3355.5,2.1876]
[1765385248801,1.2969,3355.6,3355.5,3.5069]
[1765385248992,2.6103,3355.6,3355.5,3.5069]
[1765385249194,4.20959506,3355.9,3355.8,1.328]
[1765385249498,6.10399506,3356.0,3355.9,2.6473]
[1765385249807,6.42013551,3356.0,3355.9,2.6473]
[1765385249989,5.8181,3356.0,3355.9,2.6473]
[1765385250797,5.8181,3356.0,3355.5,0.8596]
[1765385251299,2.6103,3355.6,3355.5,2.1876]
[1765385251600,2.1800638,3355.6,3355.5,3.5069]
[1765385251803,0.8831638,3355.6,3355.5,3.5069]
[1765385251996,3.4934562,3355.9,3355.8,1.328]
[1765385252596,3.4934562,3355.9,3355.5,2.1876]
[1765385252597,2.6103,3355.6,3355.5,2.1876]
[1765385252798,3.4934562,3355.6,3355.5,2.1876]
[1765385252999,2.1800562,3355.6,3355.5,3.5069]
[1765385253192,0.8831562,3355.6,3355.5,3.5069]
[1765385253592,0.8831562,3355.9,3355.5,3.5069]
[1765385253800,1.2969,3355.6,3355.5,3.5069]
[1765385254201,2.1800562,3355.6,3355.5,3.5069]
[1765385254902,3.4934562,3355.6,3355.5,3.5069]
[1765385255105,3.4934562,3355.6,3355.5,1.328]
[1765385255402,2.1800562,3355.6,3355.5,3.443]
[1765385255592,0.8831562,3355.6,3355.5,3.443]
[1765385255799,2.17960063,3355.6,3355.5,3.443]
[1765385257002,3.49300063,3355.6,3355.5,3.443]
[1765385257798,2.17960063,3355.6,3355.5,3.443]
[1765385258193,3.49300063,3355.6,3355.5,3.443]
[1765385258400,0.14901,3355.4,3353.5,0.7957]
[1765385258597,4.80709506,3355.2,3354.5,3.50952867]
[1765385258799,1.2969,3354.7,3354.6,2.6473]
[1765385259100,3.49300063,3354.7,3354.6,1.328]
[1765385259295,3.49300063,3354.7,3354.5,0.00262867]
[1765385259500,3.49300063,3354.6,3354.5,0.00262867]
[1765385259901,5.09229569,3354.6,3354.5,0.00262867]
[1765385261005,3.80931785,3354.6,3354.5,0.00262867]
[1765385263897,3.80931785,3354.6,3353.5,2.1237]
[1765385263898,2.6103,3353.6,3353.5,2.1237]
[1765385264102,2.6103,3353.6,3353.5,3.443]
[1765385264103,3.49300063,3353.6,3353.5,3.443]
[1765385264399,2.17960063,3353.6,3353.5,3.443]
[1765385264809,2.18262298,3353.6,3353.5,3.44621199]
[1765385265608,3.49602298,3353.6,3353.5,3.44621199]
[1765385265811,3.49602298,3353.6,3353.5,2.12691199]
[1765385266203,3.49602298,3353.6,3353.5,3.44621199]
[1765385267412,2.18262298,3353.6,3353.5,3.44621199]
[1765385268304,0.88572298,3353.6,3353.5,3.44621199]
[1765385268905,0.00302235,3353.6,3353.5,3.44621199]
[1765385270614,1.29992235,3353.6,3353.5,3.44621199]
[1765385270818,3.49602298,3353.6,3353.5,3.44621199]
[1765385272215,0.88572298,3353.6,3353.5,3.44621199]
[1765385272927,0.00302235,3353.6,3353.5,3.44621199]
[1765385273727,2.61332235,3353.6,3353.5,0.00321199]
[1765385274029,3.49602298,3353.6,3353.5,2.12691199]
[1765385274429,3.49602298,3353.6,3353.5,3.44621199]
[1765385274828,3.49602298,3353.6,3353.5,0.00321199]
[1765385275420,3.49602298,3353.6,3353.5,2.12691199]
[1765385275621,2.6103,3353.3,3353.2,0.00447447]
[1765385275825,3.49300063,3353.3,3353.2,0.00447447]
[1765385276129,1.2969,3352.6,3352.5,6.6508]
[1765385276725,1.2969,3352.6,3352.5,6.65305135]
[1765385276930,3.2078,3353.3,3352.5,6.65305135]
[1765385277130,0.91855379,3353.2,3352.5,6.65305135]
[1765385277827,1.2969,3352.6,3352.5,6.65305135]
[1765385278431,3.2078,3353.3,3352.5,6.65305135]
[1765385278628,0.91824124,3353.2,3352.5,6.65305135]
[1765385280532,0.91824124,3353.2,3353.1,2.4475]
[1765385280831,0.00302235,3353.6,3353.0,0.6956]
[1765385280832,3.34358437,3353.6,3353.0,0.6956]
[1765385281032,3.34358437,3353.6,3353.4,1.2217]
[1765385281033,3.34056202,3353.5,3353.4,1.2217]
[1765385281335,0.00302235,3353.6,3353.5,3.1431]
[1765385281531,3.2078,3354.2,3353.6,2.4475]
[1765385281728,3.2078,3354.2,3353.8,2.4475]
[1765385282826,0.00693184,3353.9,3353.8,2.4475]
[1765385285929,2.4223,3353.8,3353.7,2.4475]
[1765385286124,0.00693184,3353.9,3353.5,0.6956]
[1765385286125,2.4223,3353.6,3353.5,3.1431]
[1765385286325,4.03095702,3353.9,3353.8,1.2217]
[1765385286629,1.1942,3353.6,3353.5,3.1431]
[1765385286822,1.20113184,3353.9,3353.8,2.4475]
[1765385287236,0.00693184,3353.9,3353.8,2.4475]
[1765385287723,2.9738,3353.5,3352.9,3.2078]
[1765385287928,2.9738,3353.5,3352.9,2.4475]
[1765385287929,2.4223,3353.0,3352.9,2.4475]
[1765385288228,2.73914238,3353.0,3352.9,1.2217]
[1765385288429,2.4223,3352.6,3352.5,2.44975135]
[1765385288628,1.60445991,3352.8,3352.7,2.411]
[1765385288834,2.80145991,3352.9,3352.8,2.411]
[1765385289133,2.3879,3352.6,3352.5,2.41325135]
[1765385289634,1.197,3352.6,3352.5,2.41325135]
[1765385289834,2.3879,3352.8,3352.7,2.411]
[1765385290045,1.197,3352.6,3352.5,2.41325135]
[1765385291028,2.80141309,3352.9,3352.8,2.411]
[1765385291231,2.3879,3352.6,3352.5,0.00225135]
[1765385291429,2.3879,3352.6,3352.5,2.41325135]
[1765385291831,3.99231309,3352.9,3352.8,2.411]
[1765385292229,3.99231309,3352.9,3352.5,0.69505135]
[1765385292230,4.81221309,3353.0,3352.9,2.411]
[1765385293331,7.20011309,3353.0,3352.9,2.411]
[1765385293634,8.12423344,3353.0,3352.9,2.411]
[1765385293837,6.93333344,3353.0,3352.9,2.411]
[1765385294332,5.73633344,3353.0,3352.9,2.411]
[1765385295034,2.035e-05,3353.0,3352.9,2.411]
[1765385295534,2.035e-05,3353.0,3352.9,8.411]
[1765385295732,1.60441309,3353.5,3352.9,2.411]
[1765385295936,1.60441309,3353.6,3353.5,2.411]
[1765385296932,1.60441309,3353.6,3353.5,2.42192122]
[1765385297528,2.80141309,3353.7,3353.6,2.411]
[1765385297930,2.80141309,3353.7,3353.6,2.42192122]
[1765385298739,2.82776798,3353.7,3353.6,2.411]
[1765385298940,1.63076798,3353.7,3353.6,2.411]
[1765385299638,0.02635489,3353.7,3353.6,2.411]
[1765385302235,2.41425489,3353.7,3353.6,2.411]
[1765385302637,2.41425489,3353.7,3353.6,1.234]
[1765385302940,1.22335489,3353.7,3353.6,2.411]